fUSD/lending_fUSD_20240204
["ID","MTS","AMOUNT","RATE_DAILY","PERIOD"]
[313276899,1707069032874,-150.0,0.00022769,2]
[313276901,1707069032884,-154.12,0.00022769,2]
[313276902,1707069032894,-500.0,0.00022771,2]
[313276903,1707069032903,-284.23563581,0.00022872,2]
[313276904,1707069032914,-1802.4004762,0.00022893,2]
[313276905,1707069032923,-5375.99472615,0.00022894,2]
[313276906,1707069032933,-1996.8931,0.00022898,2]
[313276907,1707069032943,-2000.0,0.00022958,2]
[313276908,1707069032952,-155.0,0.0002297,2]
[313276909,1707069032962,-548918.11397761,0.00022971,2]
[313276910,1707069032971,-443.2,0.00022972,2]
[313276911,1707069032981,-1274.86411108,0.00023,2]
[313276912,1707069032990,-290.4,0.00023,2]
[313276913,1707069033000,-402.11,0.00023357,2]
[313276915,1707069033010,-225.48,0.00023385,2]
[313276916,1707069033019,-201.83380007,0.00024,2]
[313276918,1707069033029,-2366.53,0.00024384,2]
[313276920,1707069033040,-225.48,0.00024498,2]
[313276922,1707069033050,-250.0,0.00024658,2]
[313276924,1707069033059,-200.0,0.00025,2]
[313276926,1707069033069,-511.04510181,0.00025,2]
[313276928,1707069033079,-225.48,0.00025612,2]
[313276930,1707069033088,-402.11,0.00025621,2]
[313276933,1707069033098,-150.0,0.00026079,2]
[313276935,1707069033107,-284.23563575,0.00026162,3]
[313276937,1707069033117,-225.48,0.00026726,2]
[313276939,1707069033127,-500.0,0.00027,7]
[313276941,1707069033136,-500.0,0.00027103,2]
[313276943,1707069033146,-3048.75,0.00027124,2]
[313276945,1707069033155,-163.19,0.00027128,2]
[313276947,1707069033164,-677.68,0.00027141,2]
[313276949,1707069033173,-3413.12951419,0.00027157,2]
[313276951,1707069033182,-12751.76411337,0.00027157,2]
[313276953,1707069033192,-2448.25642054,0.00027157,2]
[313276955,1707069033200,-8914.54836927,0.00027225,2]
[313276957,1707069033210,-207.89965997,0.000275,2]
[313276959,1707069033219,-160.99975112,0.00027528,2]
[313276961,1707069033228,-160.99975112,0.00027622,2]
[313276963,1707069033237,-402.11,0.00027885,2]
[313276965,1707069033246,-153.29405713,0.00027974,2]
[313276967,1707069033255,-1091.80323669,0.00028226,2]
[313276969,1707069033268,-154.12,0.00028461,2]
[313276971,1707069033277,-1091.80323669,0.00028692,2]
[313276973,1707069033286,-153.29405713,0.00028724,2]
[313276975,1707069033296,-677.68,0.00028784,2]
[313276977,1707069033305,-154.05,0.00028858,2]
[313276980,1707069033315,-500.0,0.00029,2]
[313276982,1707069033324,-168.02,0.00029122,2]
[313276984,1707069033334,-1091.80323669,0.00029223,2]
[313276986,1707069033344,-284.23563575,0.00029451,4]
[313276988,1707069033353,-1221.78,0.00029479,2]
[313276990,1707069033362,-363.86836841,0.00029557,3]
[313276992,1707069033372,-181.9341842,0.00029557,3]
[313276994,1707069033382,-4271.98592321,0.00029557,4]
[313276996,1707069033392,-168.08267277,0.00029814,2]
[313276997,1707069033401,-1091.80323669,0.00029925,2]
[313276999,1707069033410,-155.0,0.0003,4]
[313277002,1707069033419,-5637.40464828,0.0003,2]
[313277004,1707069033429,-1970.77972657,0.0003,2]
[313277006,1707069033441,-5863.36973768,0.0003,4]
[313277008,1707069033451,-400.73567726,0.0003,4]
[313277010,1707069033460,-155.0,0.0003,2]
[313277012,1707069033469,-154.59,0.0003,2]
[313277014,1707069033479,-500.0,0.0003,2]
[313277016,1707069033489,-150.0,0.00030137,2]
[313277018,1707069033499,-402.11,0.00030149,2]
[313277020,1707069033508,-677.68,0.00030428,2]
[313277022,1707069033519,-732.18690129,0.00030498,4]
[313277024,1707069033529,-150.0,0.00030714,2]
[313277026,1707069033540,-153.29405713,0.00030984,7]
[313277028,1707069033549,-154.98375468,0.00030989,7]
[313277030,1707069033559,-154.98375468,0.00031185,7]
[313277032,1707069033569,-1091.80323669,0.00031197,7]
[313277034,1707069033578,-150.0,0.00031291,2]
[313277037,1707069033588,-500.0,0.000315,2]
[313277039,1707069033598,-1279.29,0.00031526,2]
[313277041,1707069033607,-156.80178581,0.00031534,7]
[313277043,1707069033616,-180.0,0.00031644,2]
[313277044,1707069033625,-219170.450342,0.000318,3]
[313277045,1707069033635,-150.0,0.00031867,2]
[313277046,1707069033644,-677.68,0.00032072,2]
[313277047,1707069033654,-1091.80323669,0.00032196,7]
[313277048,1707069033663,-209.37882577,0.0003227,2]
[313277049,1707069033673,-402.11,0.00032413,2]
[313277050,1707069033682,-150.0,0.00032444,2]
[313277051,1707069033691,-284.23563575,0.00032741,6]
[313277052,1707069033700,-203.0,0.00032893,2]
[313277053,1707069033709,-150.0,0.00033021,2]
[313277054,1707069033720,-499.079,0.00033181,2]
[313277055,1707069033729,-203.0,0.0003347,3]
[313277056,1707069033738,-506.55,0.000335,2]
[313277057,1707069033747,-506.55,0.000335,2]
[313277058,1707069033757,-506.55,0.000335,2]
[313277059,1707069033766,-506.55,0.000335,2]
[313277060,1707069033775,-506.55,0.000335,2]
[313277061,1707069033785,-506.55,0.000335,2]
[313277062,1707069033794,-506.55,0.000335,2]
[313277063,1707069033804,-506.55,0.000335,2]
[313277064,1707069033813,-506.55,0.000335,2]
[313277065,1707069033823,-506.55,0.000335,2]
[313277066,1707069033833,-506.55,0.000335,2]
[313277067,1707069033843,-506.55,0.000335,2]
[313277068,1707069033852,-506.55,0.000335,2]
[313277069,1707069033862,-506.55,0.000335,2]
[313277070,1707069033872,-506.55,0.000335,2]
[313277071,1707069033881,-506.55,0.000335,2]
[313277072,1707069033891,-506.55,0.000335,2]
[313277073,1707069033901,-506.55,0.000335,2]
[313277074,1707069033910,-506.55,0.000335,2]
[313277075,1707069033920,-506.55,0.000335,2]
[313277076,1707069033929,-150.0,0.00033598,2]
[313277077,1707069033939,-677.68,0.00033716,2]
[313277078,1707069033948,-168.02,0.00033975,2]
[313277079,1707069033957,-155.0,0.00034,4]
[313277080,1707069033967,-765.94522118,0.00034,4]
[313277081,1707069033976,-156.08841774,0.00034002,7]
[313277082,1707069033990,-203.0,0.00034047,4]
[313277083,1707069034033,-154.12,0.00034153,2]
[313277084,1707069034044,-150.0,0.00034175,2]
[313277085,1707069034053,-1091.80323669,0.00034187,7]
[313277086,1707069034063,-1091.80323669,0.00034274,7]
[313277087,1707069034073,-154.59,0.000344,2]
[313277088,1707069034083,-154.59,0.000344,2]
[313277089,1707069034092,-150.0,0.00034548,10]
[313277090,1707069034102,-203.0,0.00034623,5]
[313277091,1707069034112,-402.11,0.00034677,2]
[313277092,1707069034121,-150.0,0.00034751,2]
[313277093,1707069034130,-156.08841774,0.0003481,7]
[313277094,1707069034143,-195.10400093,0.00034927,2]
[313277095,1707069034152,-4050.67071956,0.00035,15]
[313277096,1707069034162,-155.0,0.00035,4]
[313277097,1707069034171,-221.77404607,0.00035,4]
[313277098,1707069034180,-155.0,0.00035,2]
[313277099,1707069034190,-155.0,0.00035,4]
[313277100,1707069034200,-411.0,0.00035146,5]
[313277101,1707069034210,-203.0,0.000352,6]
[313277102,1707069034219,-153.29405713,0.00035233,7]
[313277103,1707069034230,-151.94956887,0.00035249,7]
[313277104,1707069034239,-3000.0,0.0003526,2]
[313277105,1707069034248,-162.50678445,0.00035261,7]
[313277106,1707069034258,-151.94956887,0.00035266,7]
[313277107,1707069034267,-150.0,0.00035328,2]
[313277108,1707069034276,-677.68,0.0003536,2]
[313277109,1707069034286,-150.0,0.00035442,2]
[313277110,1707069034295,-154.98375468,0.00035445,7]
[313277111,1707069034305,-150.0,0.00035447,2]
[313277112,1707069034315,-150.0,0.00035485,2]
[313277113,1707069034324,-150.0,0.0003554,2]
[313277114,1707069034336,-150.0,0.00035541,2]
[313277115,1707069034346,-150.0,0.000356,13]
[313277116,1707069034357,-345.60015135,0.00035616,30]
[313277117,1707069034367,-2366.53,0.00035616,2]
[313277118,1707069034377,-10000.0,0.00035616,2]
[313277119,1707069034387,-3000.0,0.0003562,2]
[313277120,1707069034398,-376.52897719,0.00035643,4]
[313277121,1707069034407,-767.16175879,0.00035643,4]
[313277122,1707069034417,-203.0,0.00035777,8]
[313277123,1707069034426,-7999.99,0.00035777,14]
[313277124,1707069034437,-151.81201266,0.0003578,2]
[313277125,1707069034449,-163.91148818,0.00035782,8]
[313277126,1707069034459,-169.34319835,0.00035782,8]
[313277127,1707069034470,-198.58536634,0.00035808,2]
[313277128,1707069034479,-1000.0,0.00035879,2]
[313277129,1707069034490,-157961.22940143,0.0003588,2]
[313277134,1707069038326,-465.55918947,0.00035643,3]
[313277135,1707069038504,-2717.8190038,0.00035643,3]
[313277136,1707069038525,-45259.11786839,0.00035643,3]
[313277137,1707069038537,-13219.78334358,0.00035643,3]
[313277138,1707069038549,-7541.24416179,0.00035643,3]
[313277139,1707069038560,-37169.79006751,0.00035643,3]
[313277140,1707069038571,-609.44059354,0.00035643,3]
[313277141,1707069038582,-423.2307416,0.00035643,3]
[313277142,1707069038599,-587.673,0.00035643,3]
[313277143,1707069038611,-2115.96220214,0.00035643,3]
[313277144,1707069038622,-4758.74190659,0.00035643,3]
[313277145,1707069038633,-848.7923766,0.00035643,3]
[313277146,1707069038648,-1343.29667571,0.00035643,3]
[313277148,1707069038660,-3704.77177377,0.00035643,3]
[313277150,1707069038671,-428.64964192,0.00035643,3]
[313277154,1707069040889,-31811.95883841,0.00035643,3]
[313277155,1707069040902,-4092.45247709,0.00035643,3]
[313277156,1707069040914,-10851.63165665,0.00035643,3]
[313277157,1707069040927,-2365.40788766,0.00035643,3]
[313277158,1707069041525,-190733.36044381,0.00035643,3]
[313277159,1707069041535,-78567.01436476,0.0003588,2]
[313277160,1707069041546,-2245.7695183,0.0003588,2]
[313277161,1707069041632,-429.61585565,0.0003588,2]
[313277162,1707069041644,-1501.998,0.0003588,2]
[313277163,1707069041656,-8000.05617801,0.0003588,2]
[313277164,1707069041690,-634.66,0.0003588,2]
[313277165,1707069041704,-500.0,0.0003588,2]
[313277166,1707069041716,-295.41653518,0.0003588,2]
[313277167,1707069041727,-752.08599537,0.0003588,2]
[313277168,1707069041739,-366.43596909,0.0003588,2]
[313277169,1707069041750,-2440.917,0.0003588,2]
[313277170,1707069041776,-296.12134139,0.0003588,2]
[313277178,1707069043354,-17117.62609,0.0003588,2]
[313277179,1707069043367,-6493.28448736,0.0003588,2]
[313277180,1707069043409,-3327.22008275,0.0003588,2]
[313277181,1707069043421,-9013.80868853,0.0003588,2]
[313277182,1707069043468,-369.894879,0.0003588,2]
[313277183,1707069043481,-450.0,0.0003588,2]
[313277184,1707069043494,-260757.73435104,0.0003588,2]
[313277185,1707069043522,-792.50513559,0.0003588,2]
[313277186,1707069043534,-695.71,0.0003588,2]
[313277187,1707069043581,-741.91047136,0.0003588,2]
[313277188,1707069043592,-734.70695519,0.0003588,2]
[313277189,1707069044705,155.0,0.0002,2]
[313277195,1707069046326,-359.24718817,0.0003,2]
[313277197,1707069046337,-140.75281183,0.0003,2]
[313277199,1707069046347,-44288.86917982,0.0003588,2]
[313277200,1707069046356,-150.0,0.00035905,2]
[313277201,1707069046365,-1091.80323669,0.00035908,7]
[313277202,1707069046374,-218.707206,0.00035912,2]
[313277203,1707069046383,-224.906848,0.00035912,2]
[313277205,1707069046393,-996.548462,0.00035912,2]
[313277207,1707069046402,-594.806447,0.00035912,2]
[313277209,1707069046412,-158.994242,0.00035912,2]
[313277210,1707069046422,-299.32441982,0.00036,4]
[313277211,1707069046431,-193.0,0.00036,2]
[313277212,1707069046441,-284.23563575,0.00036031,7]
[313277213,1707069046451,-734.5497216,0.0003607,2]
[313277214,1707069046462,-303.25047033,0.000361,4]
[313277215,1707069046473,-154.98375468,0.00036138,7]
[313277216,1707069046482,-3000.0,0.0003624,2]
[313277217,1707069046491,-7425.39905283,0.0003626,2]
[313277218,1707069046500,-1091.80323669,0.00036265,7]
[313277219,1707069046510,-154.98375468,0.00036279,7]
[313277220,1707069046519,-1754.00469909,0.00036301,30]
[313277221,1707069046529,-218.707206,0.0003635,2]
[313277222,1707069046538,-224.906848,0.0003635,2]
[313277223,1707069046547,-996.548462,0.0003635,2]
[313277224,1707069046556,-594.806447,0.0003635,2]
[313277225,1707069046566,-203.0,0.00036354,9]
[313277226,1707069046576,-166.24,0.00036438,2]
[313277227,1707069046585,-150.0,0.00036482,2]
[313277228,1707069046593,-13146.66107917,0.000365,5]
[313277229,1707069046602,-59102.8988,0.00036528,2]
[313277230,1707069046612,-24243.44342664,0.00036528,2]
[313277231,1707069046622,-151.8120125,0.00036552,2]
[313277232,1707069046634,-504.85794256,0.00036626,4]
[313277233,1707069046645,-156.65326466,0.00036627,4]
[313277234,1707069046655,-3591.43127721,0.00036627,4]
[313277235,1707069046664,-16742.28246426,0.00036628,4]
[313277236,1707069046674,-163.91148818,0.00036702,9]
[313277237,1707069046683,-218.707206,0.00036788,2]
[313277238,1707069046693,-224.906848,0.00036788,2]
[313277239,1707069046704,-996.548462,0.00036788,2]
[313277241,1707069046713,-594.806447,0.00036788,2]
[313277243,1707069046722,-158.994242,0.00036788,2]
[313277245,1707069046731,-667.52376808,0.0003679,5]
[313277247,1707069046740,-3000.0,0.0003687,2]
[313277249,1707069046748,-1811.19535764,0.000369,7]
[313277250,1707069046758,-150.0,0.000369,2]
[313277252,1707069046767,-203.0,0.0003693,10]
[313277254,1707069046776,-10000.0,0.00036934,2]
[313277256,1707069046785,-402.11,0.0003694,2]
[313277258,1707069046794,-467.69663291,0.00036998,4]
[313277260,1707069046803,-20948.4771273,0.00036998,4]
[313277262,1707069046812,-2578.83967603,0.00036998,4]
[313277264,1707069046821,-155.0,0.00036999,4]
[313277265,1707069046830,-242.56332041,0.00036999,4]
[313277266,1707069046840,-171.87975763,0.00037,5]
[313277267,1707069046850,-1000.0,0.00037,2]
[313277268,1707069046859,-506.55,0.00037,3]
[313277269,1707069046868,-506.55,0.00037,3]
[313277271,1707069046877,-506.55,0.00037,3]
[313277272,1707069046886,-506.55,0.00037,3]
[313277273,1707069046895,-506.55,0.00037,3]
[313277274,1707069046904,-506.55,0.00037,3]
[313277275,1707069046914,-506.55,0.00037,3]
[313277276,1707069046923,-506.55,0.00037,3]
[313277277,1707069046932,-506.55,0.00037,3]
[313277278,1707069046941,-506.55,0.00037,3]
[313277279,1707069046950,-506.55,0.00037,3]
[313277280,1707069046959,-506.55,0.00037,3]
[313277281,1707069046968,-506.55,0.00037,3]
[313277282,1707069046978,-506.55,0.00037,3]
[313277283,1707069046987,-506.55,0.00037,3]
[313277284,1707069046996,-506.55,0.00037,3]
[313277285,1707069047006,-506.55,0.00037,3]
[313277286,1707069047015,-506.55,0.00037,3]
[313277287,1707069047025,-506.55,0.00037,3]
[313277288,1707069047034,-506.55,0.00037,3]
[313277289,1707069047047,-500.0,0.00037,2]
[313277290,1707069047056,-176.92,0.00037,2]
[313277291,1707069047066,-150.0,0.00037,2]
[313277292,1707069047075,-150.0,0.00037059,2]
[313277293,1707069047087,-248.60332856,0.00037144,4]
[313277294,1707069047096,-1091.80323669,0.00037174,7]
[313277295,1707069047106,-168.08267277,0.00037191,2]
[313277296,1707069047116,-156.08841774,0.00037284,7]
[313277297,1707069047125,-151.8120125,0.00037324,2]
[313277298,1707069047134,-270.45243273,0.00037448,4]
[313277299,1707069047144,-1091.80323669,0.00037468,7]
[313277300,1707069047154,-369.0,0.0003749,5]
[313277301,1707069047163,-3000.0,0.0003749,2]
[313277302,1707069047171,-203.0,0.00037507,11]
[313277303,1707069047180,-157.87469733,0.00037519,4]
[313277304,1707069047190,-301.91289594,0.00037519,2]
[313277305,1707069047199,-197.10035129,0.00037519,4]
[313277306,1707069047208,-2142.12617352,0.00037519,4]
[313277307,1707069047217,-950.52621198,0.00037519,4]
[313277308,1707069047226,-473.29314073,0.00037519,4]
[313277309,1707069047236,-502.32920618,0.00037519,4]
[313277310,1707069047245,-2619.74608901,0.00037519,2]
[313277311,1707069047254,-10572.76791723,0.00037519,4]
[313277312,1707069047263,-5773.63343012,0.00037519,4]
[313277313,1707069047272,-1224.40629802,0.00037519,4]
[313277314,1707069047281,-155.0,0.00037519,4]
[313277315,1707069047291,-19084.94415689,0.00037519,4]
[313277316,1707069047299,-7791.36306763,0.00037519,4]
[313277317,1707069047308,-265.75241527,0.00037519,4]
[313277318,1707069047318,-343.09423097,0.00037519,4]
[313277319,1707069047327,-376.165677,0.00037519,4]
[313277320,1707069047336,-155.0,0.00037519,4]
[313277321,1707069047345,-1256.24889353,0.00037519,4]
[313277322,1707069047354,-279.83597365,0.00037519,4]
[313277323,1707069047364,-875.56427091,0.00037519,4]
[313277324,1707069047373,-244.00082597,0.00037519,4]
[313277325,1707069047382,-1815.13226475,0.00037519,4]
[313277326,1707069047391,-450.12144164,0.0003752,4]
[313277327,1707069047400,-2128.7552993,0.0003752,4]
[313277328,1707069047410,-6870.64976652,0.00037521,2]
[313277329,1707069047419,-4931.89358001,0.00037521,2]
[313277330,1707069047428,-352.94,0.00037548,2]
[313277331,1707069047437,-163.91148818,0.00037622,10]
[313277332,1707069047447,-150.0,0.00037635,2]
[313277333,1707069047456,-154.98375468,0.00037641,7]
[313277334,1707069047465,-156.08841774,0.00037659,7]
[313277335,1707069047475,-154.98375468,0.00037706,7]
[313277336,1707069047485,-151.94956887,0.00037763,7]
[313277337,1707069047494,-1091.80323669,0.00037764,7]
[313277338,1707069047503,-2000.0,0.00037798,4]
[313277339,1707069047512,-374.67744232,0.00037826,4]
[313277340,1707069047522,-2264.55948546,0.00037826,4]
[313277341,1707069047531,-768.69623108,0.00037827,2]
[313277342,1707069047540,-2647.85279142,0.00037827,4]
[313277343,1707069047549,-211.0,0.00037828,2]
[313277344,1707069047558,-20086.21,0.00037828,5]
[313277345,1707069047568,-200.0,0.0003789,7]
[313277346,1707069047577,-230.40495837,0.0003789,7]
[313277347,1707069047586,-162.3288008,0.00037898,2]
[313277348,1707069047595,-1225.14299131,0.000379,7]
[313277349,1707069047605,-649770.816221,0.000379,3]
[313277350,1707069047614,-283.73018845,0.000379,2]
[313277351,1707069047623,-151.94956888,0.0003791,7]
[313277352,1707069047632,-200.0,0.0003799,7]
[313277353,1707069047641,-90767.08593482,0.00038,2]
[313277354,1707069047659,-525.22306113,0.00038,2]
[313277355,1707069047705,-4812.04182535,0.00038,2]
[313277356,1707069047716,-1978.04585996,0.00038,2]
[313277357,1707069047732,-892.9623729,0.0003,4]
[313277358,1707069054454,2309.0349,0.00022438,2]
[313277359,1707069072716,545.9016,0.00022442,2]
[313277360,1707069080828,792.62965198,9e-05,2]
[313277361,1707069094429,319.94753094,0.0002,2]
[313277362,1707069128270,157.29784999,0.0002,2]
[313277363,1707069143209,300.0,0.0002241,2]
[313277364,1707069148235,157.29784999,0.0002,2]
[313277365,1707069154479,858.05378955,0.0002,2]
[313277366,1707069155228,623.3393929,0.00021854,2]
[313277367,1707069156567,150.89419686,0.00022,2]
[313277368,1707069157314,361.65945006,0.0002,2]
[313277369,1707069158434,162.21767949,0.00020489,2]
[313277370,1707069160629,561.86622075,0.00020261,2]
[313277371,1707069164511,1199.49514891,0.0002,2]
[313277372,1707069166245,157.29784999,0.0002,2]
[313277373,1707069176417,164.75386382,0.00020489,2]
[313277374,1707069180621,412.9450634,0.00020261,2]
[313277375,1707069184249,278.06122133,0.0002,2]
[313277379,1707069194118,210.55949341,0.00022,2]
[313277380,1707069198714,155.0,0.0002,2]
[313277381,1707069204270,155.50013682,0.00020489,2]
[313277382,1707069213390,155.44142013,0.00020489,2]
[313277383,1707069224249,150.0,0.00022,2]
[313277384,1707069239461,1005.86579131,0.00020489,2]
[313277385,1707069246661,1000.0,0.0002,2]
[313277386,1707069292355,294.77806135,0.00022,2]
[313277387,1707069297439,337.97,0.00021164,2]
[313277388,1707069345918,550.0,0.00022,3]
[313277389,1707069387464,10000.0,0.00022357,2]
[313277390,1707069390086,150.0,0.00022428,2]
[313277391,1707069391079,500.0,0.00022,2]
[313277392,1707069450745,200.0,0.00022355,2]
[313277393,1707069472889,250.0,0.00022355,2]
[313277394,1707069495098,200.0,0.00022355,2]
[313277395,1707069500434,194.68,0.00022355,2]
[313277396,1707069521328,150.0,0.00022,2]
[313277397,1707069589328,150.0,0.00022,2]
[313277398,1707069612482,500.0,0.00022314,2]
[313277399,1707069613021,200.0,0.00022314,2]
[313277400,1707069626823,315.44,0.0002248,2]
[313277401,1707069657494,150.0,0.00022,2]
[313277402,1707069707118,1852.42,0.00022192,2]
[313277403,1707069725281,234.93713699,0.00022,2]
[313277404,1707069725839,150.0,0.00022,2]
[313277405,1707069731942,167.43,0.00022192,2]
[313277406,1707069746337,186.99,0.00022192,2]
[313277407,1707069762299,250.0,0.00022192,2]
[313277408,1707069774634,359.75,0.00020305,2]
[313277409,1707069774789,2000.0,0.00022223,2]
[313277410,1707069799194,1754.17,0.0002229,2]
[313277411,1707069811124,150.0,0.00022406,2]
[313277412,1707069822811,2705.0,0.00022337,2]
[313277413,1707069861835,151.85,0.00022445,2]
[313277414,1707069893893,169.58208488,0.00022,5]
[313277415,1707069899942,250.0,0.00022256,2]
[313277416,1707069923540,176.94784806,0.00022468,2]
[313277417,1707069928562,176.94784806,0.00022469,2]
[313277419,1707069942391,250.29,0.00022256,2]
[313277420,1707069944221,750.0,0.00022256,2]
[313277422,1707069954513,162.01160859,0.00020489,2]
[313277423,1707069990507,162.01160859,0.00020489,2]
[313277424,1707070004221,175.99,0.00016712,2]
[313277425,1707070006505,162.01160859,0.00020489,2]
[313277426,1707070010682,200.0,0.00022439,2]
[313277427,1707070028511,167.21028768,0.00020489,2]
[313277428,1707070084284,200.0,0.000223,8]
[313277429,1707070086403,500.0,0.000224,8]
[313277430,1707070088531,800.0,0.000225,8]
[313277431,1707070138982,177.70417391,0.00022469,2]
[313277432,1707070174809,155.0,0.0002198,2]
[313277433,1707070189856,162.51,0.00017665,2]
[313277434,1707070195630,250.0,0.00022026,2]
[313277435,1707070197267,710.54,0.00022077,2]
[313277436,1707070205535,387.23,0.00020217,2]
[313277437,1707070206132,387.23,0.00022481,2]
[313277456,1707070231454,-155.0,0.00022568,2]
[313277458,1707070231464,-1140.68860112,0.00022573,2]
[313277460,1707070231473,-238.93,0.00022574,2]
[313277461,1707070231482,-3158.73458727,0.00022599,2]
[313277462,1707070231494,-1567.7011782,0.00022599,2]
[313277463,1707070231505,-605.0,0.00022599,2]
[313277464,1707070231516,-44668.56423453,0.00022599,2]
[313277465,1707070231525,-300.0,0.00022599,2]
[313277466,1707070231534,-150.0,0.00022599,2]
[313277467,1707070231543,-1100.0,0.000226,8]
[313277468,1707070231552,-174.65147663,0.00022665,2]
[313277469,1707070231561,-204.05609396,0.00022666,2]
[313277470,1707070231570,-19507.7706,0.00022667,2]
[313277471,1707070231579,-1400.0,0.000227,8]
[313277472,1707070231589,-447.98,0.00022723,2]
[313277473,1707070231598,-174.65147659,0.00022724,2]
[313277474,1707070231607,-715.40359523,0.00022766,2]
[313277475,1707070231616,-149185.79794678,0.00022767,2]
[313277476,1707070231625,-12104.26976051,0.00022768,2]
[313277477,1707070231634,-174.65147659,0.00022783,2]
[313277478,1707070231643,-200.0,0.000228,8]
[313277479,1707070231652,-174.65147659,0.00022841,2]
[313277480,1707070231662,-169.34319834,0.000229,2]
[313277481,1707070231670,-988.43734345,0.000229,2]
[313277482,1707070231679,-195.10400093,0.000229,2]
[313277483,1707070231688,-989.91982667,0.000229,2]
[313277484,1707070231697,-174.65147659,0.000229,2]
[313277485,1707070231706,-539.13569934,0.000229,6]
[313277486,1707070231715,-152.90211847,0.000229,2]
[313277487,1707070231725,-1216.35542186,0.000229,2]
[313277488,1707070231734,-200.0,0.000229,8]
[313277489,1707070231744,-151.12841012,0.0002299,2]
[313277490,1707070231754,-9704.70313385,0.00022998,2]
[313277491,1707070231765,-1050.70548747,0.00022998,2]
[313277492,1707070231775,-10864.93651832,0.00022998,2]
[313277493,1707070231785,-155.0,0.00022998,2]
[313277494,1707070231795,-487.99435337,0.00022998,2]
[313277496,1707070231806,-203.43210543,0.00022998,2]
[313277499,1707070231818,-655.21645281,0.00022998,2]
[313277501,1707070231828,-155.0,0.00022999,2]
[313277503,1707070231838,-1047.28946763,0.00022999,2]
[313277505,1707070231849,-1848.16516899,0.00022999,2]
[313277507,1707070231859,-157.76612977,0.00022999,2]
[313277509,1707070231869,-342.68960484,0.00022999,2]
[313277511,1707070231879,-200.39054888,0.00022999,2]
[313277513,1707070231891,-473.54978766,0.00022999,2]
[313277517,1707070231910,-1812.62303913,0.00022999,2]
[313277519,1707070231921,-500.0,0.00022999,2]
[313277521,1707070231931,-279.91036849,0.00022999,2]
[313277523,1707070231940,-492.03692539,0.00022999,2]
[313277525,1707070231950,-315.3991499,0.00022999,2]
[313277527,1707070231960,-492.59196512,0.00022999,2]
[313277529,1707070231970,-500.0,0.00022999,2]
[313277531,1707070231979,-500.0,0.00022999,2]
[313277533,1707070231989,-297.15884149,0.00022999,2]
[313277535,1707070232000,-150.0,0.00022999,2]
[313277537,1707070232009,-150.0,0.00022999,2]
[313277539,1707070232020,-150.0,0.00022999,2]
[313277540,1707070232030,-206.35715746,0.00022999,2]
[313277541,1707070232039,-153.06134721,0.00022999,2]
[313277542,1707070232049,-27625.93652553,0.00023,2]
[313277543,1707070232100,-639.29473813,0.00023,2]
[313277544,1707070232113,-601.42389288,0.00023,2]
[313277545,1707070232126,-2470.0,0.00023,2]
[313277546,1707070232206,-63177.29062168,0.00023,2]
[313277547,1707070232218,-861.17642,0.00023,2]
[313277548,1707070232235,-1000.0,0.00023,2]
[313277549,1707070232246,-10118.27873128,0.00023,2]
[313277550,1707070232257,-770.0,0.00023,2]
[313277551,1707070232269,-4805.83630706,0.00023,2]
[313277552,1707070232280,-2163.55,0.00023,2]
[313277553,1707070234844,150.0,0.00022077,2]